fUSD/lending_fUSD_20240805
["ID","MTS","AMOUNT","RATE_DAILY","PERIOD"]
[334262003,1722873056943,-506.113534,0.00024455,7]
[334262004,1722873056953,-506.113534,0.00024455,7]
[334262005,1722873056962,-162.739692,0.00024455,7]
[334262006,1722873056973,-162.739692,0.00024455,7]
[334262007,1722873056983,-1067.918067,0.00024455,7]
[334262008,1722873056994,-1067.918067,0.00024455,7]
[334262009,1722873057003,-151.0,0.00024455,7]
[334262010,1722873057015,-151.0,0.00024455,7]
[334262011,1722873057024,-1303.680173,0.00024455,7]
[334262012,1722873057033,-1303.680173,0.00024455,7]
[334262013,1722873057043,-151.0,0.00024455,7]
[334262014,1722873057054,-500.0,0.00024458,2]
[334262015,1722873057064,-5902.60858952,0.00024459,2]
[334262016,1722873057075,-202.61586874,0.00024459,2]
[334262017,1722873057085,-500.0,0.0002446,2]
[334262018,1722873057095,-151.0,0.00024464,7]
[334262019,1722873057108,-272.952347,0.00024464,7]
[334262020,1722873057118,-151.0,0.00024464,7]
[334262021,1722873057128,-151.0,0.00024464,7]
[334262022,1722873057138,-151.0,0.00024464,7]
[334262023,1722873057148,-204.757337,0.00024464,7]
[334262024,1722873057158,-204.757337,0.00024464,7]
[334262025,1722873057168,-151.0,0.00024464,7]
[334262026,1722873057178,-151.0,0.00024464,7]
[334262027,1722873057189,-269.904098,0.00024464,7]
[334262028,1722873057199,-521.433248,0.00024464,7]
[334262029,1722873057209,-521.433248,0.00024464,7]
[334262030,1722873057218,-597.760281,0.00024464,7]
[334262031,1722873057228,-597.760281,0.00024464,7]
[334262032,1722873057239,-151.0,0.00024464,7]
[334262033,1722873057248,-151.0,0.00024464,7]
[334262034,1722873057258,-1234.47373,0.00024464,7]
[334262035,1722873057268,-294.633735,0.00024464,7]
[334262036,1722873057278,-1234.47373,0.00024464,7]
[334262037,1722873057288,-294.633735,0.00024464,7]
[334262038,1722873057298,-160.175098,0.00024464,7]
[334262039,1722873057308,-160.175098,0.00024464,7]
[334262040,1722873057318,-242.791145,0.00024464,7]
[334262041,1722873057332,-242.791145,0.00024464,7]
[334262042,1722873057342,-161.943854,0.00024464,7]
[334262043,1722873057352,-161.943854,0.00024464,7]
[334262044,1722873057362,-4493.050001,0.00024464,7]
[334262045,1722873057372,-177.56,0.00024464,7]
[334262046,1722873057381,-177.56,0.00024464,7]
[334262047,1722873057391,-151.0,0.00024464,7]
[334262048,1722873057401,-151.0,0.00024464,7]
[334262049,1722873057411,-151.0,0.00024464,7]
[334262050,1722873057420,-942.414915,0.00024464,7]
[334262051,1722873057430,-151.0,0.00024464,7]
[334262052,1722873057440,-942.414915,0.00024464,7]
[334262053,1722873057449,-345.232768,0.00024464,7]
[334262054,1722873057459,-345.232768,0.00024464,7]
[334262055,1722873057469,-322.033161,0.00024464,7]
[334262056,1722873057479,-157.602656,0.00024464,7]
[334262057,1722873057488,-322.033161,0.00024464,7]
[334262058,1722873057498,-157.602656,0.00024464,7]
[334262059,1722873057508,-151.0,0.00024464,7]
[334262060,1722873057518,-158.421894,0.00024464,7]
[334262061,1722873057554,-151.0,0.00024464,7]
[334262062,1722873057563,-267.08746,0.00024464,7]
[334262063,1722873057578,-267.08746,0.00024464,7]
[334262064,1722873057588,-762.136116,0.00024464,7]
[334262065,1722873057598,-762.136116,0.00024464,7]
[334262066,1722873057610,-283.716499,0.00024464,7]
[334262067,1722873057620,-283.716499,0.00024464,7]
[334262068,1722873057630,-151.0,0.00024464,7]
[334262069,1722873057640,-282.954892,0.00024464,7]
[334262070,1722873057650,-282.954892,0.00024464,7]
[334262071,1722873057660,-171310.86491076,0.00024464,2]
[334262072,1722873057670,-500.0,0.00024468,2]
[334262073,1722873057680,-3799.90737604,0.00024469,2]
[334262074,1722873057691,-202.61586874,0.0002447,2]
[334262075,1722873057702,-1658.78234811,0.00024472,2]
[334262076,1722873057712,-3644.75063732,0.00024472,2]
[334262077,1722873057723,-3799.90737604,0.00024472,2]
[334262078,1722873057732,-151.0,0.00024475,7]
[334262079,1722873057742,-165.49294,0.00024475,7]
[334262080,1722873057752,-165.49294,0.00024475,7]
[334262081,1722873057762,-202.644094,0.00024475,7]
[334262082,1722873057772,-202.644094,0.00024475,7]
[334262083,1722873057782,-151.0,0.00024475,7]
[334262084,1722873057792,-151.0,0.00024475,7]
[334262085,1722873057801,-190.358682,0.00024475,7]
[334262086,1722873057811,-190.358682,0.00024475,7]
[334262087,1722873057821,-233.896115,0.00024475,7]
[334262088,1722873057835,-151.0,0.00024475,7]
[334262089,1722873057844,-233.896115,0.00024475,7]
[334262090,1722873057857,-513.379401,0.00024475,7]
[334262091,1722873057867,-513.379401,0.00024475,7]
[334262092,1722873057877,-151.0,0.00024475,7]
[334262093,1722873057886,-151.0,0.00024475,7]
[334262094,1722873057896,-525.89479,0.00024475,7]
[334262095,1722873057905,-525.89479,0.00024475,7]
[334262096,1722873057915,-447.532233,0.00024475,2]
[334262097,1722873057926,-447.532233,0.00024475,2]
[334262098,1722873057937,-280.77696,0.00024475,7]
[334262099,1722873057951,-181.956367,0.00024475,7]
[334262100,1722873057960,-280.77696,0.00024475,7]
[334262101,1722873057970,-181.956367,0.00024475,7]
[334262102,1722873057981,-217.301948,0.00024475,7]
[334262103,1722873057990,-217.301948,0.00024475,7]
[334262104,1722873058001,-251.428043,0.00024475,7]
[334262105,1722873058012,-228.307641,0.00024475,7]
[334262106,1722873058024,-228.307641,0.00024475,7]
[334262107,1722873058036,-151.0,0.00024475,7]
[334262108,1722873058046,-151.0,0.00024475,7]
[334262109,1722873058055,-289.261514,0.00024475,7]
[334262110,1722873058065,-252.022855,0.00024475,7]
[334262111,1722873058074,-252.022855,0.00024475,7]
[334262112,1722873058087,-151.627755,0.00024475,7]
[334262113,1722873058098,-157.436173,0.00024475,7]
[334262114,1722873058109,-157.436173,0.00024475,7]
[334262115,1722873058118,-151.0,0.00024475,7]
[334262116,1722873058128,-360.944291,0.00024475,7]
[334262117,1722873058137,-151.0,0.00024475,7]
[334262118,1722873058148,-360.944291,0.00024475,7]
[334262119,1722873058158,-151.0,0.00024475,7]
[334262120,1722873058168,-151.0,0.00024475,7]
[334262121,1722873058178,-151.0,0.00024475,7]
[334262122,1722873058188,-834.194522,0.00024475,7]
[334262123,1722873058198,-834.194522,0.00024475,7]
[334262124,1722873058208,-2318.216077,0.00024475,7]
[334262125,1722873058218,-2318.216077,0.00024475,7]
[334262126,1722873058228,-184.409518,0.00024475,7]
[334262127,1722873058237,-160.7904,0.00024475,7]
[334262128,1722873058246,-184.409518,0.00024475,7]
[334262129,1722873058256,-151.0,0.00024475,7]
[334262130,1722873058266,-160.7904,0.00024475,7]
[334262131,1722873058276,-506.113534,0.00024475,7]
[334262132,1722873058286,-506.113534,0.00024475,7]
[334262133,1722873058295,-162.739692,0.00024475,7]
[334262134,1722873058305,-162.739692,0.00024475,7]
[334262135,1722873058315,-1067.918067,0.00024475,7]
[334262136,1722873058327,-1067.918067,0.00024475,7]
[334262137,1722873058339,-151.0,0.00024475,7]
[334262138,1722873058348,-187.468049,0.00024475,7]
[334262139,1722873058359,-1303.680173,0.00024475,7]
[334262140,1722873058368,-1303.680173,0.00024475,7]
[334262141,1722873058378,-151.0,0.00024475,7]
[334262142,1722873058388,-171310.86491076,0.00024475,2]
[334262143,1722873058398,-500.0,0.00024477,2]
[334262144,1722873058408,-202.61586874,0.00024477,2]
[334262145,1722873058418,-5902.60858952,0.00024478,2]
[334262146,1722873058428,-520.3125,0.0002448,2]
[334262147,1722873058439,-297.539832,0.0002448,7]
[334262148,1722873058448,-151.0,0.0002448,7]
[334262149,1722873058457,-151.0,0.0002448,7]
[334262150,1722873058467,-151.0,0.0002448,7]
[334262151,1722873058476,-151.0,0.0002448,7]
[334262152,1722873058487,-190.358682,0.0002448,7]
[334262153,1722873058496,-190.358682,0.0002448,7]
[334262154,1722873058506,-233.896115,0.0002448,7]
[334262155,1722873058516,-151.0,0.0002448,7]
[334262156,1722873058525,-233.896115,0.0002448,7]
[334262157,1722873058535,-513.379401,0.0002448,7]
[334262158,1722873058545,-513.379401,0.0002448,7]
[334262159,1722873058554,-151.0,0.0002448,7]
[334262160,1722873058564,-151.0,0.0002448,7]
[334262161,1722873058574,-447.532233,0.0002448,2]
[334262162,1722873058586,-447.532233,0.0002448,2]
[334262163,1722873058596,-181.956367,0.0002448,7]
[334262164,1722873058607,-181.956367,0.0002448,7]
[334262165,1722873058619,-217.301948,0.0002448,7]
[334262166,1722873058634,-217.301948,0.0002448,7]
[334262167,1722873058650,-151.0,0.0002448,7]
[334262168,1722873058663,-252.022855,0.0002448,7]
[334262169,1722873058677,-252.022855,0.0002448,7]
[334262170,1722873058690,-157.436173,0.0002448,7]
[334262171,1722873058706,-157.436173,0.0002448,7]
[334262172,1722873058721,-151.0,0.0002448,7]
[334262173,1722873058737,-360.944291,0.0002448,7]
[334262174,1722873058752,-151.0,0.0002448,7]
[334262175,1722873058766,-360.944291,0.0002448,7]
[334262176,1722873058780,-151.0,0.0002448,7]
[334262177,1722873058796,-151.0,0.0002448,7]
[334262178,1722873058809,-834.194522,0.0002448,7]
[334262179,1722873058820,-834.194522,0.0002448,7]
[334262180,1722873058837,-2318.216077,0.0002448,7]
[334262181,1722873058852,-2318.216077,0.0002448,7]
[334262182,1722873058867,-184.409518,0.0002448,7]
[334262183,1722873058881,-160.7904,0.0002448,7]
[334262184,1722873058897,-184.409518,0.0002448,7]
[334262185,1722873058912,-151.0,0.0002448,7]
[334262186,1722873058923,-160.7904,0.0002448,7]
[334262187,1722873058934,-506.113534,0.0002448,7]
[334262188,1722873058951,-506.113534,0.0002448,7]
[334262189,1722873058966,-204.757337,0.0002448,7]
[334262190,1722873058978,-204.757337,0.0002448,7]
[334262191,1722873058993,-151.0,0.0002448,7]
[334262192,1722873059008,-151.0,0.0002448,7]
[334262193,1722873059022,-521.433248,0.0002448,7]
[334262194,1722873059034,-521.433248,0.0002448,7]
[334262195,1722873059047,-162.739692,0.0002448,7]
[334262196,1722873059060,-162.739692,0.0002448,7]
[334262197,1722873059073,-597.760281,0.0002448,7]
[334262198,1722873059093,-597.760281,0.0002448,7]
[334262199,1722873059107,-297.617758,0.0002448,7]
[334262200,1722873059121,-1067.918067,0.0002448,7]
[334262201,1722873059135,-1067.918067,0.0002448,7]
[334262202,1722873059148,-151.0,0.0002448,7]
[334262203,1722873059161,-1234.47373,0.0002448,7]
[334262204,1722873059175,-294.633735,0.0002448,7]
[334262205,1722873059189,-1234.47373,0.0002448,7]
[334262206,1722873059203,-294.633735,0.0002448,7]
[334262207,1722873059217,-160.175098,0.0002448,7]
[334262208,1722873059230,-160.175098,0.0002448,7]
[334262209,1722873059243,-242.791145,0.0002448,7]
[334262210,1722873059257,-242.791145,0.0002448,7]
[334262211,1722873059270,-161.943854,0.0002448,7]
[334262212,1722873059283,-161.943854,0.0002448,7]
[334262213,1722873059295,-4493.050001,0.0002448,7]
[334262214,1722873059308,-177.56,0.0002448,7]
[334262215,1722873059321,-177.56,0.0002448,7]
[334262216,1722873059340,-260.246355,0.0002448,7]
[334262217,1722873059353,-151.0,0.0002448,7]
[334262218,1722873059366,-151.0,0.0002448,7]
[334262219,1722873059382,-942.414915,0.0002448,7]
[334262220,1722873059396,-151.0,0.0002448,7]
[334262221,1722873059410,-942.414915,0.0002448,7]
[334262222,1722873059422,-345.232768,0.0002448,7]
[334262223,1722873059435,-345.232768,0.0002448,7]
[334262224,1722873059448,-322.033161,0.0002448,7]
[334262225,1722873059463,-157.602656,0.0002448,7]
[334262226,1722873059477,-322.033161,0.0002448,7]
[334262227,1722873059491,-157.602656,0.0002448,7]
[334262228,1722873059504,-151.0,0.0002448,7]
[334262229,1722873059518,-151.0,0.0002448,7]
[334262230,1722873059543,-267.08746,0.0002448,7]
[334262231,1722873059557,-267.08746,0.0002448,7]
[334262232,1722873059570,-762.136116,0.0002448,7]
[334262233,1722873059585,-762.136116,0.0002448,7]
[334262234,1722873059598,-283.716499,0.0002448,7]
[334262235,1722873059613,-283.716499,0.0002448,7]
[334262236,1722873059627,-151.0,0.0002448,7]
[334262237,1722873059640,-282.954892,0.0002448,7]
[334262238,1722873059653,-282.954892,0.0002448,7]
[334262239,1722873059666,-171310.86491076,0.0002448,2]
[334262240,1722873059679,-1328.58061019,0.00024482,2]
[334262241,1722873059692,-1328.58061019,0.00024482,2]
[334262242,1722873059705,-520.3125,0.00024483,2]
[334262243,1722873059718,-202.61586874,0.00024483,2]
[334262244,1722873059731,-500.0,0.00024486,2]
[334262245,1722873059743,-3799.90737604,0.00024487,2]
[334262246,1722873059756,-1328.58061019,0.00024488,2]
[334262247,1722873059769,-1328.58061019,0.00024489,2]
[334262248,1722873059782,-5902.60858952,0.00024494,2]
[334262249,1722873059794,-500.0,0.00024495,2]
[334262250,1722873059807,-500.0,0.00024496,2]
[334262251,1722873059820,-520.3125,0.00024496,2]
[334262252,1722873059835,-3799.90737604,0.00024499,2]
[334262253,1722873059848,-1328.58061019,0.00024499,2]
[334262254,1722873059863,-1133.1119983,0.000245,2]
[334262255,1722873059876,-1091.70801124,0.000245,2]
[334262256,1722873059888,-1069.24736289,0.000245,2]
[334262257,1722873059901,-976.35740584,0.000245,2]
[334262258,1722873059913,-1498.78,0.000245,7]
[334262259,1722873059926,-500.0,0.00024504,2]
[334262260,1722873059940,-2500.0,0.00024504,2]
[334262261,1722873059953,-2500.0,0.0002451,2]
[334262262,1722873059966,-500.0,0.00024512,2]
[334262263,1722873059979,-500.0,0.00024521,2]
[334262264,1722873059992,-500.0,0.0002453,2]
[334262265,1722873060005,-500.0,0.00024539,2]
[334262266,1722873060020,-500.0,0.00024548,2]
[334262267,1722873060033,-500.0,0.00024556,2]
[334262268,1722873060046,-500.0,0.00024565,2]
[334262269,1722873060060,-500.0,0.00024574,2]
[334262270,1722873060073,-2500.0,0.00024581,2]
[334262271,1722873060090,-500.0,0.00024583,2]
[334262272,1722873060102,-500.0,0.00024592,2]
[334262273,1722873060114,-500.0,0.000246,2]
[334262274,1722873060127,-500.0,0.00024609,2]
[334262275,1722873060140,-280.16398905,0.00024612,2]
[334262276,1722873060152,-500.0,0.00024618,2]
[334262277,1722873060165,-500.0,0.00024627,2]
[334262278,1722873060179,-500.0,0.00024636,2]
[334262279,1722873060192,-500.0,0.00024644,2]
[334262280,1722873060205,-500.0,0.00024653,2]
[334262281,1722873060219,-500.0,0.00024657,30]
[334262282,1722873060232,-833.33,0.00024657,30]
[334262283,1722873060245,-500.0,0.00024657,30]
[334262284,1722873060259,-500.0,0.00024662,2]
[334262285,1722873060272,-500.0,0.00024671,2]
[334262286,1722873060284,-500.0,0.00024678,2]
[334262287,1722873060297,-500.0,0.0002468,2]
[334262288,1722873060310,-500.0,0.00024688,2]
[334262289,1722873060323,-500.0,0.00024697,2]
[334262290,1722873060342,-151.0,0.00024699,7]
[334262291,1722873060357,-1303.680173,0.00024699,7]
[334262292,1722873060370,-1303.680173,0.00024699,7]
[334262293,1722873060383,-233.896115,0.000247,7]
[334262294,1722873060396,-151.0,0.000247,7]
[334262295,1722873060408,-233.896115,0.000247,7]
[334262296,1722873060421,-513.379401,0.000247,7]
[334262297,1722873060434,-513.379401,0.000247,7]
[334262298,1722873060447,-151.0,0.000247,7]
[334262299,1722873060460,-151.0,0.000247,7]
[334262300,1722873060473,-525.89479,0.000247,7]
[334262301,1722873060486,-525.89479,0.000247,7]
[334262302,1722873060498,-447.532233,0.000247,2]
[334262303,1722873060509,-447.532233,0.000247,2]
[334262304,1722873060523,-280.77696,0.000247,7]
[334262305,1722873060535,-181.956367,0.000247,7]
[334262306,1722873060548,-280.77696,0.000247,7]
[334262307,1722873060560,-181.956367,0.000247,7]
[334262308,1722873060573,-217.301948,0.000247,7]
[334262309,1722873060589,-217.301948,0.000247,7]
[334262310,1722873060602,-251.428043,0.000247,7]
[334262311,1722873060616,-228.307641,0.000247,7]
[334262312,1722873060628,-228.307641,0.000247,7]
[334262313,1722873060640,-151.0,0.000247,7]
[334262314,1722873060653,-151.0,0.000247,7]
[334262315,1722873060666,-252.022855,0.000247,7]
[334262316,1722873060679,-252.022855,0.000247,7]
[334262317,1722873060692,-157.436173,0.000247,7]
[334262318,1722873060704,-157.436173,0.000247,7]
[334262319,1722873060717,-151.0,0.000247,7]
[334262320,1722873060729,-360.944291,0.000247,7]
[334262321,1722873060741,-151.0,0.000247,7]
[334262322,1722873060754,-360.944291,0.000247,7]
[334262323,1722873060767,-151.0,0.000247,7]
[334262324,1722873060779,-151.0,0.000247,7]
[334262325,1722873060792,-834.194522,0.000247,7]
[334262326,1722873060804,-834.194522,0.000247,7]
[334262327,1722873060816,-2318.216077,0.000247,7]
[334262328,1722873060832,-2318.216077,0.000247,7]
[334262329,1722873060845,-160.7904,0.000247,7]
[334262330,1722873060857,-184.409518,0.000247,7]
[334262331,1722873060869,-160.7904,0.000247,7]
[334262332,1722873060881,-184.409518,0.000247,7]
[334262333,1722873060894,-163.660718,0.000247,7]
[334262334,1722873060905,-160.7904,0.000247,7]
[334262335,1722873060917,-160.7904,0.000247,7]
[334262336,1722873060930,-506.113534,0.000247,7]
[334262337,1722873060944,-506.113534,0.000247,7]
[334262338,1722873060956,-506.113534,0.000247,7]
[334262339,1722873060968,-506.113528,0.000247,7]
[334262340,1722873060980,-204.757337,0.000247,7]
[334262341,1722873060992,-204.757337,0.000247,7]
[334262342,1722873061005,-204.757337,0.000247,7]
[334262343,1722873061018,-204.757337,0.000247,7]
[334262344,1722873061031,-151.0,0.000247,7]
[334262345,1722873061043,-151.0,0.000247,7]
[334262346,1722873061056,-151.0,0.000247,7]
[334262347,1722873061068,-521.433248,0.000247,7]
[334262348,1722873061083,-521.433248,0.000247,7]
[334262349,1722873061095,-521.433248,0.000247,7]
[334262350,1722873061107,-521.433248,0.000247,7]
[334262351,1722873061119,-162.739692,0.000247,7]
[334262352,1722873061132,-162.739692,0.000247,7]
[334262353,1722873061144,-162.739692,0.000247,7]
[334262354,1722873061156,-162.739683,0.000247,7]
[334262355,1722873061168,-597.760281,0.000247,7]
[334262356,1722873061180,-597.760281,0.000247,7]
[334262357,1722873061192,-597.760281,0.000247,7]
[334262358,1722873061204,-597.760281,0.000247,7]
[334262359,1722873061217,-1067.918067,0.000247,7]
[334262360,1722873061228,-1067.918067,0.000247,7]
[334262361,1722873061240,-1067.918067,0.000247,7]
[334262362,1722873061252,-1067.918076,0.000247,7]
[334262363,1722873061265,-278.360981,0.000247,7]
[334262364,1722873061276,-1234.47373,0.000247,7]
[334262365,1722873061291,-294.633735,0.000247,7]
[334262366,1722873061303,-1234.47373,0.000247,7]
[334262367,1722873061315,-294.633735,0.000247,7]
[334262368,1722873061329,-160.175098,0.000247,7]
[334262369,1722873061341,-160.175098,0.000247,7]
[334262370,1722873061353,-242.791145,0.000247,7]
[334262371,1722873061365,-242.791145,0.000247,7]
[334262372,1722873061377,-161.943854,0.000247,7]
[334262373,1722873061390,-161.943854,0.000247,7]
[334262374,1722873061402,-151.0,0.000247,7]
[334262375,1722873061416,-942.414915,0.000247,7]
[334262376,1722873061428,-942.414915,0.000247,7]
[334262377,1722873061440,-345.232768,0.000247,7]
[334262378,1722873061453,-345.232768,0.000247,7]
[334262379,1722873061465,-322.033161,0.000247,7]
[334262380,1722873061477,-322.033161,0.000247,7]
[334262381,1722873061489,-151.0,0.000247,7]
[334262382,1722873061501,-151.0,0.000247,7]
[334262383,1722873061513,-267.08746,0.000247,7]
[334262384,1722873061524,-267.08746,0.000247,7]
[334262385,1722873061536,-762.136116,0.000247,7]
[334262386,1722873061549,-762.136116,0.000247,7]
[334262387,1722873061561,-283.716499,0.000247,7]
[334262388,1722873061574,-283.716499,0.000247,7]
[334262389,1722873061590,-151.0,0.000247,7]
[334262390,1722873061602,-282.954892,0.000247,7]
[334262391,1722873061615,-282.954892,0.000247,7]
[334262392,1722873061628,-500.0,0.00024706,2]
[334262393,1722873061640,-704.63449281,0.00024712,2]
[334262394,1722873061653,-500.0,0.00024715,2]
[334262395,1722873061666,-500.0,0.00024724,2]
[334262396,1722873061679,-500.0,0.00024732,2]
[334262397,1722873061691,-500.0,0.00024741,2]
[334262398,1722873061704,-2500.0,0.00024742,2]
[334262399,1722873061717,-9653.7597985,0.0002475,2]
[334262400,1722873061729,-500.0,0.0002475,2]
[334262401,1722873061743,-500.0,0.00024759,2]
[334262402,1722873061755,-2500.0,0.00024761,2]
[334262403,1722873061767,-500.0,0.00024768,2]
[334262404,1722873061780,-500.0,0.00024776,2]
[334262405,1722873061793,-500.0,0.00024785,2]
[334262406,1722873061805,-500.0,0.00024794,2]
[334262407,1722873061817,-151.0,0.00024799,7]
[334262408,1722873061831,-165.49294,0.00024799,7]
[334262409,1722873061844,-165.49294,0.00024799,7]
[334262410,1722873061856,-202.644094,0.00024799,7]
[334262411,1722873061869,-202.644094,0.00024799,7]
[334262412,1722873061881,-151.0,0.00024799,7]
[334262413,1722873061893,-151.0,0.00024799,7]
[334262414,1722873061906,-190.358682,0.00024799,7]
[334262415,1722873061919,-190.358682,0.00024799,7]
[334262416,1722873061934,-4439.93941618,0.000248,2]
[334262417,1722873061947,-400.0,0.000248,7]
[334262418,1722873061960,-151.0,0.000248,7]
[334262419,1722873061973,-190.593609,0.000248,7]
[334262420,1722873061985,-151.0,0.000248,7]
[334262421,1722873061997,-1388.7945,0.000248,2]
[334262422,1722873062010,-35000.0,0.000248,2]
[334262423,1722873062024,-5002.69143628,0.000248,2]
[334262424,1722873062037,-150.0,0.00024802,2]
[334262425,1722873062050,-500.0,0.00024803,2]
[334262426,1722873062062,-500.0,0.00024812,2]
[334262427,1722873062075,-500.0,0.0002482,2]
[334262428,1722873062091,-2500.0,0.00024823,2]
[334262429,1722873062103,-500.0,0.00024829,2]
[334262430,1722873062118,-500.0,0.00024838,2]
[334262431,1722873062131,-2500.0,0.00024844,2]
[334262432,1722873062144,-500.0,0.00024847,2]
[334262433,1722873062157,-500.0,0.00024856,2]
[334262434,1722873062170,-500.0,0.00024864,2]
[334262435,1722873062183,-158.89546919,0.00024873,2]
[334262436,1722873062195,-500.0,0.00024873,2]
[334262437,1722873062207,-470.78778406,0.00024875,30]
[334262438,1722873062220,-2100.0,0.0002488,3]
[334262439,1722873062232,-5800.0,0.00024882,2]
[334262440,1722873062246,-5000.0,0.00024882,2]
[334262441,1722873062258,-500.0,0.00024882,2]
[334262442,1722873062270,-5800.0,0.0002489,2]
[334262443,1722873062282,-5800.0,0.0002489,2]
[334262444,1722873062294,-5800.0,0.0002489,2]
[334262445,1722873062307,-500.0,0.00024891,2]
[334262446,1722873062319,-151.0,0.00024899,7]
[334262447,1722873062334,-360.944291,0.00024899,7]
[334262448,1722873062346,-151.0,0.00024899,7]
[334262449,1722873062360,-360.944288,0.00024899,7]
[334262450,1722873062372,-151.0,0.00024899,7]
[334262451,1722873062385,-151.0,0.00024899,7]
[334262452,1722873062398,-834.194522,0.00024899,7]
[334262453,1722873062411,-834.194531,0.00024899,7]
[334262454,1722873062424,-2318.216077,0.00024899,7]
[334262455,1722873062437,-2318.216077,0.00024899,7]
[334262456,1722873062450,-184.409518,0.00024899,7]
[334262457,1722873062464,-184.409523,0.00024899,7]
[334262458,1722873062478,-500.0,0.000249,2]
[334262459,1722873062491,-9396.25920606,0.000249,2]
[334262460,1722873062504,-91000.0,0.000249,2]
[334262461,1722873062516,-995.0,0.000249,5]
[334262462,1722873062529,-151.0,0.000249,7]
[334262463,1722873062541,-171.07459,0.000249,7]
[334262464,1722873062554,-165.49294,0.000249,7]
[334262465,1722873062568,-165.492931,0.000249,7]
[334262466,1722873062586,-202.644094,0.000249,7]
[334262467,1722873062599,-202.6441,0.000249,7]
[334262468,1722873062613,-3000.0,0.000249,2]
[334262469,1722873062631,-151.0,0.000249,7]
[334262470,1722873062645,-190.358682,0.000249,7]
[334262471,1722873062658,-190.358687,0.000249,7]
[334262472,1722873062671,-233.896115,0.000249,7]
[334262473,1722873063333,-151.0,0.000249,7]
[334262474,1722873063372,-233.896115,0.000249,7]
[334262475,1722873063398,-513.379401,0.000249,7]
[334262476,1722873063410,-513.379401,0.000249,7]
[334262477,1722873063420,-151.0,0.000249,7]
[334262478,1722873063430,-225.973222,0.000249,7]
[334262479,1722873063441,-525.89479,0.000249,7]
[334262480,1722873063451,-525.89479,0.000249,7]
[334262481,1722873063460,-447.532233,0.000249,2]
[334262482,1722873063470,-447.532233,0.000249,2]
[334262483,1722873063481,-280.77696,0.000249,7]
[334262484,1722873063491,-181.956367,0.000249,7]
[334262485,1722873063501,-280.77696,0.000249,7]
[334262486,1722873063511,-181.956367,0.000249,7]
[334262487,1722873063521,-217.301948,0.000249,7]
[334262488,1722873063531,-217.301948,0.000249,7]
[334262489,1722873063540,-251.428043,0.000249,7]
[334262490,1722873063550,-251.428043,0.000249,7]
[334262491,1722873063559,-228.307641,0.000249,7]
[334262492,1722873063569,-228.307641,0.000249,7]
[334262493,1722873063578,-151.0,0.000249,7]
[334262494,1722873063590,-151.0,0.000249,7]
[334262495,1722873063600,-252.022855,0.000249,7]
[334262496,1722873063609,-252.022855,0.000249,7]
[334262497,1722873063620,-157.436173,0.000249,7]
[334262498,1722873063630,-157.436173,0.000249,7]
[334262499,1722873063640,-151.0,0.000249,7]
[334262500,1722873063650,-1234.47373,0.000249,7]
[334262501,1722873063660,-294.633735,0.000249,7]
[334262502,1722873063671,-1234.47373,0.000249,7]